Cogmind - Beta 13 @@@ ROGUE MODE // 2024.07.16 @ 11:04:27 Player: Attma Result: Destroyed by as-16349 with Assembled Blade Performance ------------- Evolutions (0) 0 Regions Visited (2) 400 Robots Destroyed (20) 100 Value Destroyed (374) 374 Prototype IDs (0) 0 Alien Tech Used (0) 0 Bonus (0) 0 TOTAL SCORE: 874 Bonus ------- None Cogmind --------- Core Integrity 0/250 Matter 222/300 Energy 70/100 System Corruption 2% Temperature Warm (150) Movement Core (1350) Ox26 Location -10/Mines Parts ------- > --- POWER (1) -------- (None) > --- PROPULSION (2) --- (None) > --- UTILITY (2) ------ Huge Storage Unit Signal Interpreter > --- WEAPON (2) ------- (None) > --- INVENTORY (25) --- Ion Engine Ion Engine Ion Engine Ion Engine Improved Ion Engine Improved Ion Engine Improved Heat Sink Large Storage Unit High-capacity Storage Unit Huge Storage Unit High-capacity Battery (250) High-capacity Matter Pod (191) Improved Terrain Scanner Transport Network Coupler Light Armor Plating Light Armor Plating Shield Generator Shield Generator Shield Generator Heavy EM Pulse Gun Heavy EM Pulse Gun Heavy EM Pulse Gun Light Cannon Grenade Launcher Peak State ------------ > --- POWER ------------ Improved Ion Engine > --- PROPULSION ------- Light Treads Light Treads > --- UTILITY ---------- Improved Heat Sink Huge Storage Unit > --- WEAPON ----------- Particle Cannon Particle Cannon > --- INVENTORY -------- Ion Engine Ion Engine Ion Engine Ion Engine Light Ion Engine Improved Ion Engine Improved Ion Engine Aluminum Leg Aluminum Leg Compact Wheel Heat Sink Large Storage Unit High-capacity Storage Unit High-capacity Battery High-capacity Matter Pod Improved Terrain Scanner Transport Network Coupler Shield Generator Shield Generator Particle Cannon Particle Cannon Grenade Launcher Mining Laser [Rating: 15] Favorites ----------- Power Improved Ion Engine Engine Improved Ion Engine Propulsion Light Treads Treads Light Treads Utility Huge Storage Unit Device Improved Terrain Scanner Storage Huge Storage Unit Processor Signal Interpreter Weapon Particle Cannon Energy Gun EM Pulse Gun Energy Cannon Particle Cannon Ballistic Gun Light Assault Rifle Launcher Grenade Launcher Special Weapon Mining Laser Build | -11 -10 -10 ------- Run | Yrd Mat Min Slots Evolved . | . . . Power . | . . . Propulsion . | . . . Utility . | . . . Weapon . | . . . Parts Attached 26 | 8 17 1 Power 5 | 2 2 1 Engine 5 | 2 2 1 Core . | . . . Reactor . | . . . Propulsion 3 | 2 1 . Treads 3 | 2 1 . Leg . | . . . Wheel . | . . . Hover . | . . . Flight . | . . . Utility 7 | 2 5 . Device 2 | 1 1 . Storage 4 | 1 3 . Processor 1 | . 1 . Hackware . | . . . Protection . | . . . Artifact . | . . . Weapon 11 | 2 9 . Energy Gun 3 | 1 2 . Energy Cannon 2 | . 2 . Ballistic Gun 3 | 1 2 . Ballistic Cannon . | . . . Launcher 2 | . 2 . Special Weapon 1 | . 1 . Impact Weapon . | . . . Slashing Weapon . | . . . Piercing Weapon . | . . . Special Melee Weapon . | . . . Unidentified Prototypes . | . . . Parts Lost 6 | . 2 4 Power 1 | . . 1 Propulsion 3 | . 1 2 Utility . | . . . Weapon 2 | . 1 1 Highest Loss Streak 4 | . 1 4 To Critical Strikes . | . . . Average Slot Usage (%) 99 | . 99 63 Engine 13 | . 14 7 Treads 27 | . 28 7 Device 7 | . 7 . Storage 14 | . 14 14 Processor 6 | . 6 14 Energy Gun 2 | . 2 . Energy Cannon 18 | . 18 21 Ballistic Gun 4 | . 4 . Launcher 2 | . 2 . Naked Turns . | . . . Heaviest Build 96 | 14 96 95 Greatest Support 40 | 40 40 40 Greatest Overweight (x) 2 | . 2 2 Average Overweight (x) 1 | . 1 2 Largest Inventory Capacity 25 | 8 25 25 Average Capacity 22 | 7 24 25 Most Carried 25 | 7 25 25 Average Carried 20 | 5 21 24 Final Capacity 25 | 8 25 25 Final Carried 25 | 7 25 24 Class Distribution -------------------- 100% | Mutant Dominant Class ---------------- Mutant | -10/Materials Mutant | -10/Mines Resources | -11 -10 -10 ----------- Run | Yrd Mat Min Matter Collected 729 | 246 476 7 Remotely . | . . . Salvage Created 614 | 66 525 23 Parts 40 | 6 34 . Haulers Intercepted 1 | . 1 . Recyclers Shooed . | . . . Parts Field Recycled . | . . . Retrieved Matter . | . . . Parts Self-Destructed . | . . . Prevented . | . . . Kills | -11 -10 -10 ------- Run | Yrd Mat Min Combat Hostiles Destroyed 13 | . 11 2 Guns 3 | . 3 . Cannons 4 | . 2 2 AOE 6 | . 6 . Classes Destroyed 9 | 2 6 1 Worker 3 | 1 2 . Builder 1 | . 1 . Tunneler 2 | 2 . . Hauler 1 | . 1 . Recycler 1 | . 1 . Watcher 1 | . 1 . Swarmer 3 | . 3 . Grunt 8 | . 8 . Assembled 2 | . . 2 Best Kill Streak 4 | 2 4 2 Combat Bots Only 3 | . 3 2 Max Kills in Single Turn 4 | 1 4 1 Gunslinging . | . . . Exploded 3 | . 3 . Melee . | . . . Uniques/NPCs Destroyed . | . . . Combat | -11 -10 -10 -------- Run | Yrd Mat Min Hostile Shots Fired 96 | . 47 49 Missed 22 | . 11 11 Damage Taken 1144 | . 517 627 Core 271 | . 67 204 Absorbed by Shields . | . . . Core Remaining (%) 100 | 100 . . Volleys Fired 50 | 8 39 3 Largest 2 | 2 2 2 Hottest 136 | 60 136 136 Shots Fired 95 | 16 74 5 Gun 56 | 16 40 . Cannon 32 | . 27 5 Launcher 7 | . 7 . Special . | . . . Kinetic 31 | 8 23 . Thermal 35 | . 30 5 Explosive 7 | . 7 . Electromagnetic 22 | 8 14 . Robot Hit Streak 8 | 2 8 2 Robot Miss Streak 4 | 3 4 1 Penetration Max . | . . . Secondary Targets . | . . . Shots Hit Robots 53 | 6 44 3 Core Hits 33 | 5 26 2 Critical Kills . | . . . Critical Parts Destroyed . | . . . Critical Strikes . | . . . Melee Attacks . | . . . Impact . | . . . Slashing . | . . . Piercing . | . . . Sneak Attacks . | . . . Combat Hostiles . | . . . Follow-up Attacks . | . . . Damage Inflicted 1292 | 74 1138 80 Guns 357 | 74 283 . Cannons 327 | . 247 80 Explosions 608 | . 608 . Melee . | . . . Ramming . | . . . Kinetic 162 | 34 128 . Thermal 478 | . 398 80 Explosive 478 | . 478 . Electromagnetic 174 | 40 134 . Impact . | . . . Slashing . | . . . Piercing . | . . . Highest Corruption 2 | . 2 2 Average Corruption 1 | . 1 2 Corruption Purged . | . . . Corruption Blocked . | . . . Effects 38 | . 37 1 Message Errors 10 | . 10 . Matter Fused 10 | . 10 . Heat Flow Errors 5 | . 5 . Energy Discharges 4 | . 4 . Parts Rejected 2 | . 1 1 Data Loss (minor) 3 | . 3 . Data Loss (major) 1 | . 1 . Misfires 3 | . 3 . Overload Shots . | . . . Overflow Damage . | . . . Projectiles . | . . . Explosions . | . . . Melee . | . . . Knockbacks . | . . . Impact . | . . . Kinetic . | . . . Secondary . | . . . Self-Inflicted Damage 54 | . 54 . Shots 2 | . 2 . Rammed . | . . . Targets Rammed . | . . . Kicked . | . . . Crushed . | . . . Highest Temperature 309 | 40 309 150 Average Temperature 86 | 16 93 91 Received Heat Transfer 331 | . 291 40 Siege Activations . | . . . Robots Corrupted . | . . . Combat Hostiles . | . . . Parts Fried . | . . . Impact Corruptions . | . . . Robots Melted . | . . . Combat Hostiles . | . . . Parts Melted 1 | . 1 . Heat Transferred 792 | . 644 148 Parts Sabotaged . | . . . Parts Stolen . | . . . Parts Stripped . | . . . Power Chain Reactions 2 | . 2 . Alert | -11 -10 -10 ------- Run | Yrd Mat Min Peak Influence 143 | 15 143 . Initial 9 | . 9 . Average 25 | 2 27 . Maximum Alert Level . | . . . Low Security (%) 100 | 100 100 100 Level 1 . | . . . Level 2 . | . . . Level 3 . | . . . Level 4 . | . . . Level 5 . | . . . High Security . | . . . Max Security . | . . . Squads Dispatched 2 | . 2 . Investigation 2 | . 2 . Extermination . | . . . Reinforcement . | . . . Assault . | . . . Garrison . | . . . Intercept . | . . . Searches Triggered . | . . . Construction Impeded . | . . . Haulers Reinforced . | . . . Active Scanning Responses . | . . . Cargo Convoy Interrupts . | . . . Stealth | -11 -10 -10 --------- Run | Yrd Mat Min Distress Signals 1 | . 1 . Communications Jammed . | . . . Distress Signals . | . . . Times Spotted 54 | . 34 20 Peak Tracking Total 20 | . 3 20 Tactical Retreats . | . . . Traps | -11 -10 -10 ------- Run | Yrd Mat Min Traps Triggered 1 | . 1 . Indirectly . | . . . Trap Hack Attempts . | . . . Triggered . | . . . Disarmed . | . . . Reprogrammed . | . . . Reused . | . . . Traps Extracted . | . . . Installed . | . . . Triggered . | . . . Machines | -11 -10 -10 ---------- Run | Yrd Mat Min Machines Disabled . | . . . Max in Single Turn . | . . . Machines Repaired . | . . . Machines Dismantled . | . . . Machines Sabotaged . | . . . Overloaded Fab Kills . | . . . Hacking | -11 -10 -10 --------- Run | Yrd Mat Min Machines Accessed 10 | . 10 . Terminals 8 | . 8 . Fabricators . | . . . Repair Stations 1 | . 1 . Recycling Units 1 | . 1 . Scanalyzers . | . . . Garrison Access . | . . . Total Hacks 24 | . 24 . Successful 12 | . 12 . Failed 12 | . 12 . Catastrophic 2 | . 2 . Database Lockouts . | . . . Manual 5 | . 5 . Terminals 20 | . 20 . Fabricators . | . . . Repair Stations 3 | . 3 . Recycling Units 1 | . 1 . Scanalyzers . | . . . Garrison Access . | . . . Terminal Hacks 7 | . 7 . Emergency Access Points 1 | . 1 . Terminal Index 1 | . 1 . Locate Traps 3 | . 3 . Hauler Manifests 1 | . 1 . Zone Layout 1 | . 1 . Fabricator Hacks . | . . . Repair Station Hacks 2 | . 2 . Scan Component 2 | . 2 . Recycling Unit Hacks 1 | . 1 . Report Inventory 1 | . 1 . Scanalyzer . | . . . Garrison Access Hacks . | . . . Unauthorized Hacks 2 | . 2 . Terminals 2 | . 2 . Botnet 2 | . 2 . Fabricators . | . . . Repair Stations . | . . . Recycling Units . | . . . Scanalyzers . | . . . Garrison Access . | . . . Data Cores Recovered . | . . . Used . | . . . Hacking Detections 9 | . 9 . Full Trace Events 4 | . 4 . Feedback Events 1 | . 1 . Corruption 1 | . 1 . Feedback Blocked . | . . . Robot Schematics Acquired . | . . . Robots Built . | . . . Authchips . | . . . Time . | . . . Total Robot Build Rating . | . . . Part Schematics Acquired . | . . . Parts Built . | . . . Authchips . | . . . Time . | . . . Total Part Build Rating . | . . . Parts Repaired . | . . . Time . | . . . Parts Recycled . | . . . Recycled Matter . | . . . Retrieved Matter . | . . . Retrieved Components . | . . . Parts Scanalyzed . | . . . Part Schematics Acquired . | . . . Parts Damaged . | . . . Bothacking | -11 -10 -10 ------------ Run | Yrd Mat Min Used RIF Installer . | . . . Robots Hacked . | . . . Non-combat . | . . . Combat . | . . . Robot Hacks Applied . | . . . Relay Couplers Released . | . . . Fabnet Peak Effective % . | . . . Robots Rewired . | . . . Allies Hacked . | . . . Hacks Repelled . | . . . Allies | -11 -10 -10 -------- Run | Yrd Mat Min Total Allies . | . . . Largest Group . | . . . Highest-Rated Group . | . . . Highest-Rated Ally . | . . . Total Orders . | . . . Ally Attacks . | . . . Total Damage . | . . . Kills . | . . . Allies Corrupted . | . . . Allies Melted . | . . . Intel | -11 -10 -10 ------- Run | Yrd Mat Min Robot Analysis Total . | . . . Derelict Logs Recovered . | . . . Drone Launches . | . . . Drone Recoveries . | . . . Exploration | -11 -10 -10 ------------- Run | Yrd Mat Min Turns Passed 4409 | 336 4057 16 Spaces Moved 1476 | 192 1282 2 Core 11 | 11 . . Treads 1465 | 181 1282 2 Legs . | . . . Wheels . | . . . Hover . | . . . Flight . | . . . Fastest Speed 50 | 50 160 320 Average Speed 283 | 153 302 320 Slowest Speed 320 | 160 320 320 Overloaded Moves . | . . . Propulsion Burnouts . | . . . Robots Hopped . | . . . Cave-ins Triggered . | . . . Exploration Rate (%) 36 | 8 95 5 Regions Visited 2 Branch Regions 1 Pre-discovered Areas . | . . . Known Exits Taken 1 | . 1 . Unknown Exits Taken 1 | 1 . . Scrap Searched . | . . . Spaces Dug . | . . . Terrain Destroyed 31 | . 31 . Melee . | . . . Projectile . | . . . AOE 31 | . 31 . Terrain Rammed . | . . . Walls Destroyed . | . . . Machines Disabled . | . . . Actions | -11 -10 -10 --------- Run | Yrd Mat Min Total 1618 | 215 1397 6 Wait 16 | . 16 . Move 1474 | 191 1281 2 Hop . | . . . Pick Up 38 | 8 30 . Fast Attach 6 | 6 . . Attach 5 | 1 3 1 Detach . | . . . Swap 15 | 1 14 . Drop 14 | . 14 . Fire 50 | 8 39 3 Melee . | . . . Ram . | . . . Kick . | . . . Crush . | . . . Escape Stasis . | . . . Rewire . | . . . Trap . | . . . Miscellaneous . | . . . Route ------- -11/Scrapyard -10/Materials (discovered 5 exits: *Mat x3 / *Min x2) -10/Mines History --------- Turn | Location | Event 9 | -11/Scrapyard | Discovered new exit (range 15) 337 | -11/Scrapyard | Entered Materials 342 | -10/Materials | Build established: Mutant 585 | -10/Materials | Discovered new exit (range 8) 1303 | -10/Materials | Discovered new exit (range 15) 1679 | -10/Materials | Discovered new exit (range 12) 2252 | -10/Materials | Discovered new exit (range 11) 2540 | -10/Materials | Identified exit to Materials 3230 | -10/Materials | Discovered exit to Materials (range 16) 4103 | -10/Materials | Identified exit to Mines 4394 | -10/Materials | Entered Mines 4395 | -10/Mines | Assembled infested the area 4400 | -10/Mines | Assisted by a Guerilla fighting off Assembled 4403 | -10/Mines | Core integrity fell below 50% 4406 | -10/Mines | Core integrity fell below 20% 4410 | -10/Mines | Destroyed by as-16349 with Assembled Blade Last Messages --------------- 04400_ A derelict emerges from the shadows: "You need to get out of here! I've been tracking a group of Assembled to figure out where they're coming from, and they're closing on this area, come on!" 04401_ as-36544 destroyed. 04401_ Lgt. Treads destroyed. 04403_ HV Slug penetrates as-98513. 04403_ as-98513 suffers critical hit (Destroy). 04403_ as-98513 knocked back. 04403_ Imp. Ion Engine destroyed. 04405_ System corrupted: Lgt. Ion Engine rejected. 04405_ as-98513 destroyed. 04405_ Particle Cannon severed. 04407_ Knocked back. 04409_ HV Slug penetrates as-99589. 04409_ as-99589 suffers critical hit (Destroy). 04409_ as-99589 destroyed. 04410_ Particle Cannon destroyed. Map ----- +----------------------------------------------------+ | | | | | | | ????????????????????????????????????? | | ????????????????????????????????????? | | ????????????????????????????????????? | | ????????????????????????????????????? | | ????????????????????????????????????? | | ????????????????????????????????????? | | ????????????????????????????????????? | | ????????????????????????????????????? | | ????????????????????????????????????? | | ????????????????????????????????????? | | ???????????????????????#####????????? | | ??????????????????????? ????????? | | ??????????????????????? ????????? | | ??????????????????????? aa ?????????? | | ???????????????????????#a ?????????? | | ???????????????????????# ?????????? | | ???????????????????????# #?????????? | | ???????????????????????#a #?????????? | | ?????????????????????### #?????????? | | ?????????????????????#;# #?????????? | | ?????????????????????#;%%a##????????? | | ?????????????????????# aa;#????????? | | ?????????????????????# % @h#????????? | | ????????????????# a a% #????????? | | ????????????????#####;# #????????? | | ????????????????????##### #????????? | | ????????????????????????# #????????? | | ????????????????????????# #????????? | | ????????????????????????# #????????? | | ????????????????????????# #????????? | | ????????????????????????#t #????????? | | ????????????????????????? #????????? | | ????????????????????????? #????????? | | ????????????????????????? #????????? | | ????????????????????????? #????????? | | ????????????????????????? #????????? | | ????????????????????????? ?????????? | | ????????????????????????? ?????????? | | ????????????????????????????????????? | | ????????????????????????????????????? | | ????????????????????????????????????? | | ????????????????????????????????????? | | ????????????????????????????????????? | | ????????????????????????????????????? | | ????????????????????????????????????? | | ????????????????????????????????????? | | ????????????????????????????????????? | +----------------------------------------------------+ Best States ------------- Heat Dissipation 39 Energy Generation 12 Energy Capacity 265 Matter Stores 300 Matter Capacity 300 Sight Range 16 Terrain Scan Range 16 Terrain Scan Density 10 Evasion (%) 50 Recoil Reduction 2 Item Schematics ----------------- None Robot Schematics ------------------ None Fabricated ------------ Nothing Alien Tech Used ----------------- None Achievements -------------- Hunted True Hacker Challenges ------------ None Game ------ Seed SniperRainbowPrototype Manual? 0 Play Time 00:39:10 Cumulative 11.5 hours Start 2024.07.16 @ 09:59:59 End 2024.07.16 @ 11:04:27 Sessions 1 Manual Loads 0 Difficulty Rogue Special Mode None Game No. 17 Rogue 17 Adventurer 0 Explorer 0 Win Type - Total 0 Types 0/0/0/0/0/0/0/0/0 Lore% 10 Gallery% 14 Achievement% 13 Wizard Run 0 Options --------- Layout 2 ASCII 0 Keyboard 1 Movement Arrows Keybinds 0 Fullscreen 1 Font 32/SmallcapsGlow Map View 50x44 Zoom Use 0% Tactical HUD 1 Map Filters NONE Filters NONE Steam 1 RUN: f4afba25-c5b5-451a-865b-fef396055d65